bitfinex/quotes_SOLUSD_20240711
["timestamp","ask_amount","ask_price","bid_price","bid_amount"]
[1720670514366,0.17,140.64,140.61,11.95]
[1720670514873,0.17,140.64,140.62,11.95]
[1720670515179,0.17,140.64,140.63,11.95]
[1720670520595,0.17,140.65,140.63,11.95]
[1720670520596,0.17,140.67,140.63,11.95]
[1720670520890,0.17,140.67,140.65,11.95]
[1720670521089,45.0,140.69,140.66,11.95]
[1720670522704,0.51,140.68,140.65,11.95]
[1720670523067,12.46,140.68,140.63,11.95]
[1720670523275,0.17,140.66,140.6,15.5457]
[1720670523578,11.95,140.64,140.56,21.7155]
[1720670523885,0.17,140.62,140.59,11.95]
[1720670525572,0.17,140.62,140.6,11.95]
[1720670525987,0.17,140.62,140.61,11.95]
[1720670526588,0.17,140.63,140.61,11.95]
[1720670526770,0.17,140.63,140.62,11.95]
[1720670526975,0.34,140.63,140.62,11.95]
[1720670527183,0.17,140.66,140.62,11.95]
[1720670527389,45.51,140.66,140.63,11.95]
[1720670527601,0.51,140.66,140.63,11.95]
[1720670527796,0.51,140.66,140.64,11.95]
[1720670529897,0.51,140.66,140.62,11.95]
[1720670530081,0.51,140.66,140.61,28.511]
[1720670530408,12.46,140.66,140.61,28.511]
[1720670530703,12.46,140.66,140.61,16.561]
[1720670530886,0.17,140.64,140.61,11.95]
[1720670531195,0.51,140.64,140.6,11.95]
[1720670531798,0.51,140.64,140.58,16.561]
[1720670532096,11.95,140.63,140.54,15.2299]
[1720670532393,57.29,140.62,140.56,11.95]
[1720670532599,12.46,140.61,140.56,11.95]
[1720670532892,45.0,140.6,140.56,11.95]
[1720670533098,0.34,140.59,140.56,11.95]
[1720670534874,0.34,140.59,140.54,15.2299]
[1720670535075,0.17,140.58,140.54,11.95]
[1720670535686,0.17,140.58,140.55,11.95]
[1720670536589,0.34,140.59,140.56,11.95]
[1720670537083,0.34,140.59,140.55,11.95]
[1720670537986,0.34,140.59,140.51,15.2299]
[1720670537987,0.34,140.59,140.56,11.95]
[1720670539231,0.34,140.59,140.55,11.95]
[1720670539500,0.17,140.58,140.54,11.95]
[1720670539704,0.17,140.57,140.54,11.95]
[1720670539893,0.34,140.57,140.55,11.95]
[1720670540096,0.34,140.57,140.56,11.95]
[1720670540281,45.0,140.6,140.56,11.95]
[1720670540485,0.34,140.59,140.57,11.95]
[1720670540681,0.34,140.59,140.56,11.95]
[1720670541099,0.34,140.59,140.51,15.2299]
[1720670541307,0.34,140.58,140.55,11.95]
[1720670541507,0.17,140.57,140.55,11.95]
[1720670543822,0.17,140.59,140.56,11.95]
[1720670544002,0.34,140.59,140.56,11.95]
[1720670544312,0.17,140.58,140.55,11.95]
[1720670544521,0.17,140.57,140.55,11.95]
[1720670551497,0.34,140.57,140.55,11.95]
[1720670558719,6.1873,140.64,140.55,11.95]
[1720670559019,11.95,140.62,140.57,11.95]
[1720670559209,11.95,140.61,140.56,11.95]
[1720670559615,11.95,140.6,140.51,15.2299]
[1720670559839,11.95,140.59,140.54,11.95]
[1720670560138,0.51,140.58,140.51,15.2299]
[1720670560310,45.51,140.58,140.54,11.95]
[1720670561238,45.51,140.58,140.55,11.95]
[1720670561420,0.51,140.58,140.55,11.95]
[1720670563443,0.34,140.58,140.55,11.95]
[1720670564943,0.17,140.57,140.54,11.95]
[1720670566129,0.17,140.57,140.51,15.2299]
[1720670566533,0.17,140.56,140.51,15.2299]
[1720670566845,0.34,140.56,140.53,11.95]
[1720670569541,0.34,140.56,140.51,15.87568751]
[1720670569722,0.34,140.56,140.53,11.95]
[1720670570419,0.34,140.56,140.54,11.95]
[1720670570738,0.17,140.56,140.55,11.95]
[1720670570940,11.95,140.6,140.55,11.95]
[1720670571132,11.95,140.6,140.51,15.2299]
[1720670571330,11.95,140.6,140.54,11.95]
[1720670572221,0.17,140.62,140.51,15.2299]
[1720670572434,88.94838982,140.62,140.52,11.95]
[1720670572741,0.17,140.57,140.53,11.95]
[1720670572925,45.51,140.57,140.54,11.95]
[1720670573330,0.51,140.57,140.54,11.95]
[1720670574013,0.34,140.57,140.54,11.95]
[1720670574435,0.17,140.56,140.54,11.95]
[1720670574847,0.34,140.57,140.54,11.95]
[1720670575932,0.34,140.57,140.55,11.95]
[1720670576955,0.34,140.57,140.54,11.95]
[1720670578334,0.17,140.56,140.54,11.95]
[1720670578645,0.17,140.55,140.54,11.95]
[1720670579019,0.34,140.55,140.53,11.95]
[1720670581153,0.34,140.55,140.51,16.6495004]
[1720670581355,0.34,140.55,140.53,11.95]
[1720670581550,0.34,140.55,140.47,0.8198012]
[1720670581551,0.17,140.54,140.47,0.8198012]
[1720670581850,0.17,140.53,140.5,11.95]
[1720670582052,0.34,140.53,140.51,11.95]
[1720670582940,0.34,140.53,140.47,20.8198012]
[1720670583141,0.34,140.53,140.52,11.95]
[1720670584061,0.34,140.53,140.51,11.95]
[1720670584448,11.95,140.56,140.51,11.95]
[1720670584642,0.17,140.57,140.53,11.95]
[1720670584846,0.51,140.57,140.53,11.95]
[1720670585770,0.51,140.57,140.49,47.8]
[1720670585949,12.46,140.57,140.49,47.8]
[1720670586148,0.17,140.55,140.49,47.8]
[1720670586349,0.51,140.55,140.49,47.8]
[1720670587356,0.51,140.55,140.47,20.8198012]
[1720670587559,0.51,140.55,140.51,11.95]
[1720670587871,0.51,140.55,140.52,11.95]
[1720670587872,0.34,140.55,140.52,11.95]
[1720670588056,11.95,140.59,140.54,11.95]
[1720670588253,0.17,140.58,140.54,11.95]
[1720670588457,0.17,140.58,140.49,11.95]
[1720670588663,0.17,140.58,140.53,11.95]
[1720670588967,12.12,140.59,140.54,11.95]
[1720670589174,11.95,140.58,140.53,11.95]
[1720670589361,45.51,140.57,140.53,11.95]
[1720670589860,45.51,140.57,140.49,11.95]
[1720670589861,45.51,140.57,140.47,20.8198012]
[1720670590167,57.46,140.57,140.48,1.4178944]
[1720670590369,57.46,140.57,140.52,11.95]
[1720670590573,45.51,140.57,140.52,11.95]
[1720670591175,45.51,140.57,140.47,20.8198012]
[1720670591176,0.17,140.54,140.5,11.95]
[1720670591357,0.51,140.54,140.51,11.95]
[1720670591558,0.17,140.53,140.51,11.95]
[1720670591876,0.17,140.54,140.51,11.95]
[1720670592077,0.17,140.54,140.52,11.95]
[1720670593061,0.17,140.55,140.51,11.95]
[1720670593278,45.51,140.55,140.51,11.95]
[1720670594582,57.46,140.55,140.5,11.95]
[1720670598081,45.51,140.55,140.51,11.95]
[1720670598277,45.51,140.55,140.52,11.95]
[1720670598475,45.51,140.55,140.53,11.95]
[1720670599077,45.51,140.55,140.52,11.95]
[1720670599310,0.51,140.55,140.52,11.95]
[1720670601584,12.46,140.55,140.47,0.8198012]
[1720670601879,0.51,140.55,140.51,11.95]
[1720670602781,0.51,140.55,140.47,0.8198012]
[1720670603078,0.51,140.55,140.51,11.95]
[1720670603669,0.51,140.55,140.47,0.8198012]
[1720670603866,0.51,140.55,140.51,11.95]
[1720670606666,0.51,140.55,140.52,11.95]
[1720670609766,0.51,140.55,140.47,0.8198012]
[1720670610189,0.51,140.55,140.52,11.95]
[1720670610383,0.51,140.55,140.51,11.95]
[1720670611490,0.51,140.55,140.47,0.8198012]
[1720670611800,0.51,140.55,140.51,11.95]
[1720670611996,0.51,140.55,140.5,11.95]
[1720670612178,0.51,140.55,140.51,11.95]
[1720670613066,0.51,140.55,140.52,11.95]
[1720670617188,0.51,140.55,140.51,11.95]
[1720670619999,0.51,140.55,140.47,0.8198012]
[1720670620210,0.51,140.55,140.52,11.95]
[1720670621883,0.51,140.55,140.51,11.95]
[1720670624006,44.51,140.56,140.51,11.95]
[1720670625301,44.51,140.56,140.52,11.95]
[1720670626094,0.51,140.55,140.52,11.95]
[1720670628389,0.51,140.55,140.47,0.8198012]
[1720670628704,0.51,140.55,140.52,11.95]
[1720670630599,8.83166893,140.59,140.53,11.95]
[1720670630793,6.0077,140.59,140.55,11.95]
[1720670631581,17.9577,140.59,140.54,11.95]
[1720670631995,57.46,140.58,140.53,11.95]
[1720670632814,11.95,140.57,140.52,11.95]
[1720670633107,0.17,140.55,140.52,11.95]
[1720670633304,0.17,140.55,140.5,15.7776]
[1720670633489,0.17,140.55,140.52,11.95]
[1720670633697,0.17,140.55,140.5,15.7776]
[1720670634194,0.17,140.55,140.51,11.95]
[1720670635205,0.17,140.55,140.52,11.95]
[1720670637007,0.17,140.55,140.5,15.7776]
[1720670637314,0.17,140.55,140.52,11.95]
[1720670639326,0.17,140.55,140.5,15.7776]
[1720670639611,0.17,140.55,140.51,11.95]
[1720670641004,0.17,140.55,140.52,11.95]
[1720670641217,0.17,140.55,140.5,15.7776]
[1720670641836,0.17,140.55,140.52,11.95]
[1720670644623,0.17,140.55,140.53,11.95]
[1720670644824,11.95,140.58,140.53,11.95]
[1720670645002,11.95,140.58,140.52,11.95]
[1720670645206,11.95,140.57,140.52,11.95]
[1720670646011,12.46,140.56,140.47,23.1802012]
[1720670646214,57.29,140.56,140.51,11.95]
[1720670646425,0.17,140.55,140.47,23.1802012]
[1720670646612,12.12,140.55,140.47,23.1802012]
[1720670646813,0.17,140.53,140.5,11.95]
[1720670647026,0.34,140.53,140.5,11.95]
[1720670647227,0.17,140.52,140.5,11.95]
[1720670647729,0.17,140.52,140.51,11.95]
[1720670647917,0.17,140.53,140.51,11.95]
[1720670648100,6.0077,140.59,140.52,11.95]
[1720670648305,11.95,140.58,140.53,11.95]
[1720670649353,2.78524958,140.6,140.53,11.95]
[1720670649507,11.95,140.58,140.52,15.9141]
[1720670649702,11.95,140.57,140.52,15.9141]
[1720670649932,61.44961359,140.63,140.52,27.8641]
[1720670650233,39.35231884,140.61,140.53,11.95]
[1720670650411,11.95,140.59,140.54,11.95]
[1720670650607,0.51,140.58,140.54,11.95]
[1720670651012,0.51,140.58,140.49,64.2424]
[1720670651229,12.46,140.58,140.53,11.95]
[1720670651410,12.46,140.58,140.49,64.2424]
[1720670651411,0.17,140.56,140.52,11.95]
[1720670651602,0.51,140.56,140.53,11.95]
[1720670652115,0.51,140.56,140.52,11.95]
[1720670652728,0.51,140.56,140.49,64.2424]
[1720670652929,0.51,140.56,140.52,11.95]
[1720670653310,0.51,140.56,140.53,11.95]
[1720670654139,0.17,140.56,140.53,11.95]
[1720670654347,0.51,140.57,140.53,11.95]
[1720670655134,28.40204189,140.62,140.55,11.95]
[1720670655341,11.95,140.61,140.5,6.0271]
[1720670655509,31.36112917,140.61,140.55,11.95]
[1720670655721,31.36112917,140.6,140.55,11.95]
[1720670655921,11.95,140.6,140.55,11.95]
[1720670656531,0.51,140.59,140.55,11.95]
[1720670657724,0.51,140.59,140.5,6.0271]
[1720670658045,12.46,140.59,140.54,11.95]
[1720670658251,0.17,140.57,140.54,11.95]
[1720670658421,0.51,140.57,140.54,11.95]
[1720670660044,0.51,140.57,140.53,11.95]
[1720670660244,0.51,140.57,140.54,11.95]
[1720670663250,0.51,140.57,140.53,11.95]
[1720670665560,0.51,140.57,140.54,11.95]
[1720670665856,0.51,140.57,140.53,11.95]
[1720670666662,0.51,140.57,140.54,11.95]
[1720670667836,0.34,140.57,140.54,11.95]
[1720670668039,0.34,140.57,140.49,64.2424]
[1720670668263,0.34,140.57,140.54,11.95]
[1720670669765,0.17,140.57,140.54,11.95]
[1720670670063,0.51,140.57,140.49,16.4424]
[1720670670242,0.51,140.57,140.53,11.95]
[1720670670855,0.51,140.57,140.52,11.95]
[1720670671670,57.46,140.57,140.52,11.95]
[1720670672249,11.95,140.56,140.51,11.95]
[1720670672449,0.51,140.55,140.51,11.95]
[1720670672655,0.51,140.55,140.49,16.4424]
[1720670672857,0.51,140.55,140.51,11.95]
[1720670673854,0.51,140.55,140.49,16.4424]
[1720670674169,45.51,140.55,140.51,11.95]
[1720670675660,57.46,140.55,140.5,11.95]
[1720670677054,57.46,140.55,140.49,16.4424]
[1720670677254,57.46,140.55,140.5,11.95]
[1720670680764,0.17,140.53,140.47,0.8198012]
[1720670680963,0.51,140.53,140.49,11.95]
[1720670681159,45.51,140.53,140.49,11.95]
[1720670681871,57.46,140.53,140.48,11.95]
[1720670682066,45.51,140.53,140.49,11.95]
[1720670682757,45.51,140.53,140.47,0.8198012]
[1720670682956,45.51,140.53,140.49,11.95]
[1720670683472,57.46,140.53,140.48,11.95]
[1720670687561,0.51,140.53,140.5,11.95]
[1720670687876,0.51,140.53,140.51,11.95]
[1720670688076,11.95,140.55,140.5,11.95]
[1720670688253,45.0,140.54,140.5,11.95]
[1720670689153,8.08761874,140.57,140.52,11.95]
[1720670689450,8.08761874,140.57,140.49,11.95]
[1720670689451,11.95,140.58,140.53,11.95]
[1720670690567,11.95,140.58,140.5,15.3215]
[1720670690767,11.95,140.58,140.54,11.95]
[1720670690965,45.51,140.57,140.54,11.95]
[1720670691575,0.51,140.57,140.54,11.95]
[1720670696765,0.34,140.57,140.54,11.95]
[1720670696969,0.34,140.57,140.55,11.95]
[1720670698687,0.17,140.57,140.56,11.95]
[1720670700579,0.17,140.59,140.56,11.95]
[1720670700760,45.51,140.6,140.56,11.95]
[1720670702290,45.51,140.6,140.5,15.3215]
[1720670702493,0.17,140.54,140.47,23.1249012]
[1720670702670,0.34,140.54,140.5,11.95]
[1720670703066,0.34,140.54,140.48,30.0]
[1720670703286,0.34,140.54,140.49,11.95]
[1720670703287,57.29,140.54,140.49,11.95]
[1720670704091,45.34,140.54,140.5,11.95]
[1720670704589,0.17,140.53,140.5,11.95]
[1720670704771,0.17,140.52,140.5,11.95]
[1720670704970,0.34,140.52,140.5,11.95]
[1720670705669,0.34,140.52,140.51,11.95]
[1720670706691,11.95,140.57,140.51,11.95]
[1720670706895,45.51,140.56,140.52,11.95]
[1720670708487,8.22761874,140.59,140.49,11.95]
[1720670708798,20.17761874,140.59,140.54,11.95]
[1720670710478,0.34,140.58,140.54,11.95]
[1720670710683,0.51,140.58,140.54,11.95]
[1720670710886,0.51,140.58,140.52,15.4146]
[1720670711194,0.17,140.58,140.55,11.95]
[1720670711376,45.34,140.59,140.55,11.95]
[1720670713799,8.80612481,140.62,140.56,11.95]
[1720670713979,6.0239,140.62,140.58,11.95]
[1720670714987,0.34,140.61,140.58,11.95]
[1720670715190,0.51,140.61,140.58,11.95]
[1720670719191,57.46,140.61,140.53,6.0778]
[1720670719390,11.95,140.6,140.55,11.95]
[1720670719585,45.51,140.59,140.55,11.95]
[1720670722110,45.51,140.59,140.52,15.4146]
[1720670722315,12.12,140.57,140.52,27.3646]
[1720670722604,0.17,140.56,140.53,11.95]
[1720670723192,0.17,140.56,140.54,11.95]
[1720670724422,0.17,140.58,140.55,11.95]
[1720670724622,0.17,140.58,140.52,15.4146]
[1720670724800,0.17,140.58,140.54,11.95]
[1720670725495,12.12,140.58,140.53,11.95]
[1720670725701,0.34,140.57,140.53,11.95]
[1720670725903,0.17,140.56,140.53,11.95]
[1720670729902,0.17,140.56,140.52,15.4146]
[1720670730104,0.17,140.56,140.53,11.95]
[1720670732317,0.17,140.57,140.52,15.4146]
[1720670732493,0.51,140.58,140.55,11.95]
[1720670732694,0.51,140.58,140.52,15.4146]
[1720670732894,0.51,140.58,140.54,11.95]
[1720670735720,0.51,140.58,140.53,11.95]
[1720670735911,12.46,140.58,140.53,11.95]
[1720670737823,0.51,140.58,140.53,11.95]
[1720670738320,0.51,140.58,140.54,11.95]
[1720670738627,7.58911874,140.62,140.56,11.95]
[1720670738800,19.41877204,140.61,140.57,11.95]
[1720670739711,19.41877204,140.62,140.57,11.95]
[1720670740125,19.41877204,140.62,140.58,11.95]
[1720670740331,6.3522,140.65,140.59,11.95]
[1720670740630,6.3522,140.65,140.55,6.3067]
[1720670740631,19.41606725,140.64,140.6,11.95]
[1720670741322,18.3022,140.65,140.6,11.95]
[1720670741520,0.51,140.64,140.6,11.95]
[1720670741823,57.46,140.64,140.57,15.563]
[1720670742040,45.51,140.64,140.6,11.95]
[1720670742206,57.46,140.64,140.57,15.563]
[1720670742408,57.46,140.64,140.59,11.95]
[1720670744906,45.51,140.64,140.59,11.95]
[1720670745326,57.46,140.64,140.59,11.95]
[1720670745941,45.51,140.64,140.57,15.563]
[1720670746238,45.51,140.64,140.6,11.95]
[1720670749346,0.51,140.64,140.6,11.95]
[1720670749642,45.51,140.64,140.6,11.95]
[1720670751037,4.43551715,140.66,140.62,11.95]
[1720670751543,1.56521874,140.66,140.63,11.95]
[1720670752646,0.17,140.67,140.63,11.95]
[1720670752836,0.34,140.67,140.64,11.95]
[1720670753030,0.17,140.66,140.64,11.95]
[1720670753230,45.34,140.68,140.64,11.95]
[1720670753831,0.34,140.68,140.64,11.95]
[1720670754529,7.83601874,140.7,140.64,11.95]
[1720670754737,11.95,140.69,140.64,11.95]
[1720670755043,11.95,140.68,140.63,11.95]
[1720670755925,0.34,140.67,140.63,11.95]
[1720670757043,0.34,140.67,140.62,15.4231]
[1720670757044,0.17,140.67,140.64,11.95]
[1720670757348,0.17,140.68,140.64,11.95]
[1720670763155,0.17,140.68,140.66,11.95]
[1720670763337,0.17,140.69,140.67,11.95]
[1720670763531,45.34,140.7,140.67,11.95]
[1720670765129,45.34,140.7,140.66,11.95]
[1720670769845,0.34,140.7,140.67,11.95]
[1720670770351,0.34,140.7,140.69,11.95]
[1720670770534,1.56521874,140.74,140.69,11.95]
[1720670770734,1.56521874,140.74,140.7,11.95]
[1720670772251,13.51521874,140.74,140.7,11.95]
[1720670772561,0.34,140.73,140.7,11.95]
[1720670775260,0.34,140.74,140.72,11.95]
[1720670775471,1.56521874,140.79,140.73,27.7785]
[1720670775767,1.56521874,140.79,140.76,11.95]
[1720670775969,11.95,140.77,140.65,22.0115]
[1720670776139,11.95,140.76,140.71,11.95]
[1720670776875,0.17,140.74,140.71,11.95]
[1720670777168,12.7770701,140.83,140.72,11.95]
[1720670777354,0.17,140.76,140.72,11.95]
[1720670777553,45.51,140.76,140.72,11.95]
[1720670777754,57.46,140.76,140.71,11.95]
[1720670778063,45.51,140.76,140.71,11.95]
[1720670778239,45.51,140.76,140.7,15.8285]
[1720670778240,11.95,140.75,140.7,15.8285]
[1720670778440,0.34,140.74,140.7,27.7785]
[1720670779870,0.34,140.74,140.71,11.95]
[1720670780073,0.17,140.73,140.71,11.95]
[1720670780368,0.34,140.75,140.71,11.95]
[1720670780765,6.086,140.78,140.71,11.95]
[1720670780966,11.95,140.76,140.71,11.95]
[1720670781469,11.95,140.77,140.72,11.95]
[1720670782046,0.17,140.75,140.72,11.95]
[1720670783172,0.34,140.76,140.73,11.95]
[1720670783368,0.17,140.78,140.74,11.95]
[1720670783577,0.34,140.78,140.74,11.95]
[1720670784074,6.4892,140.82,140.75,11.95]
[1720670784075,11.95,140.8,140.75,11.95]
[1720670784844,11.95,140.8,140.7,70.1294]
[1720670784845,11.95,140.82,140.77,11.95]
[1720670785078,2.88223801,140.83,140.72,15.2896]
[1720670785079,11.95,140.8,140.72,15.2896]
[1720670785284,11.95,140.78,140.72,15.2896]
[1720670785447,11.95,140.77,140.68,15.2896]
[1720670785656,11.95,140.76,140.71,11.95]
[1720670786452,0.34,140.75,140.71,11.95]
[1720670787779,0.17,140.75,140.71,11.95]
[1720670787959,12.29,140.76,140.71,11.95]
[1720670788155,0.34,140.76,140.71,11.95]
[1720670788467,0.17,140.76,140.74,11.95]
[1720670788975,0.17,140.78,140.73,16.5852]
[1720670789155,0.17,140.79,140.75,11.95]
[1720670790279,0.17,140.79,140.73,16.5852]
[1720670790462,0.51,140.79,140.74,11.95]
[1720670790781,12.46,140.79,140.74,11.95]
[1720670791860,12.46,140.79,140.75,11.95]
[1720670792065,0.51,140.79,140.75,11.95]
[1720670792980,2.88223801,140.83,140.77,11.95]
[1720670793159,6.4838,140.85,140.77,11.95]
[1720670793160,11.95,140.82,140.77,11.95]
[1720670794368,0.51,140.81,140.77,11.95]
[1720670795362,0.51,140.81,140.78,11.95]
[1720670795578,0.51,140.81,140.77,11.95]
[1720670800465,0.34,140.81,140.79,11.95]
[1720670800790,11.95,140.85,140.8,13.36936993]
[1720670800976,11.95,140.85,140.8,11.95]
[1720670801162,11.95,140.84,140.79,28.1679]
[1720670801769,11.95,140.84,140.8,1.41906811]
[1720670801969,0.34,140.83,140.8,1.41906811]
[1720670802691,0.34,140.83,140.8,13.36906811]
[1720670802890,0.34,140.84,140.81,11.95]
[1720670803592,9.15464419,140.89,140.82,1.41886656]
[1720670803763,11.95,140.88,140.83,11.95]
[1720670804777,11.95,140.88,140.8,1.41886656]
[1720670805096,11.95,140.87,140.82,11.95]
[1720670805393,0.17,140.87,140.83,13.36880686]
[1720670805688,0.51,140.87,140.83,1.41880686]
[1720670805908,11.95,140.89,140.84,11.95]
[1720670806074,11.95,140.88,140.83,11.95]
[1720670806695,11.95,140.88,140.84,1.4183032]
[1720670807074,0.17,140.87,140.84,1.4183032]
[1720670807476,0.34,140.87,140.82,11.95]
[1720670807684,12.46,140.87,140.82,11.95]
[1720670807894,0.51,140.87,140.83,11.95]
[1720670808076,0.34,140.87,140.83,11.95]
[1720670809280,0.34,140.87,140.84,11.95]
[1720670809979,0.17,140.87,140.84,11.95]
[1720670810187,0.51,140.88,140.84,11.95]
[1720670810579,12.46,140.88,140.83,11.95]
[1720670810779,0.51,140.88,140.84,11.95]
[1720670811097,12.46,140.88,140.83,11.95]
[1720670812087,0.17,140.86,140.81,11.95]
[1720670812297,0.17,140.86,140.79,16.2179]
[1720670812298,0.17,140.84,140.8,11.95]
[1720670812501,0.34,140.84,140.8,11.95]
[1720670816181,11.95,140.82,140.73,22.1691]
[1720670816379,11.95,140.82,140.77,11.95]
[1720670816380,0.17,140.81,140.77,11.95]
[1720670816705,0.34,140.81,140.77,11.95]
[1720670817031,12.12,140.81,140.77,11.95]
[1720670817386,0.17,140.81,140.77,11.95]
[1720670817580,0.34,140.82,140.78,11.95]
[1720670817784,0.34,140.82,140.73,22.1691]
[1720670817785,11.95,140.85,140.8,11.95]
[1720670817988,0.51,140.84,140.8,11.95]
[1720670818882,12.46,140.84,140.79,11.95]
[1720670820491,12.12,140.82,140.74,15.5695]
[1720670820813,0.34,140.81,140.77,11.95]
[1720670823388,0.34,140.81,140.74,15.5695]
[1720670823690,12.29,140.81,140.76,11.95]
[1720670823877,0.34,140.81,140.77,11.95]
[1720670825380,0.34,140.81,140.78,11.95]
[1720670827101,11.95,140.83,140.78,11.95]
[1720670827291,0.17,140.82,140.78,11.95]
[1720670827707,0.17,140.82,140.74,15.5695]
[1720670827909,12.46,140.82,140.77,11.95]
[1720670828107,12.12,140.81,140.76,11.95]
[1720670828417,0.17,140.8,140.74,15.5695]
[1720670828611,0.17,140.8,140.76,11.95]
[1720670828612,0.34,140.8,140.76,11.95]
[1720670829208,0.34,140.8,140.77,11.95]
[1720670829419,0.34,140.81,140.77,11.95]
[1720670832405,0.34,140.81,140.74,15.5695]
[1720670832615,0.34,140.81,140.77,11.95]
[1720670833112,0.17,140.81,140.78,11.95]
[1720670833291,0.34,140.82,140.74,15.5695]
[1720670833486,0.17,140.82,140.79,11.95]
[1720670833689,0.17,140.83,140.79,11.95]
[1720670833891,0.34,140.83,140.79,11.95]
[1720670834686,6.3513,140.86,140.74,15.5695]
[1720670834687,6.3513,140.86,140.77,11.95]
[1720670834922,11.95,140.84,140.8,11.95]
[1720670835217,11.95,140.84,140.79,11.95]
[1720670836389,0.34,140.83,140.79,11.95]
[1720670837831,0.17,140.85,140.8,12.3097779]
[1720670837991,31.85653521,140.85,140.8,11.95]
[1720670838191,0.51,140.85,140.81,11.95]
[1720670838619,6.75828613,140.9,140.82,12.30965662]
[1720670838824,11.95,140.88,140.83,11.95]
[1720670838991,19.39419342,140.87,140.83,11.95]
[1720670839626,11.95,140.88,140.83,11.95]
[1720670839913,19.39419342,140.87,140.83,11.95]
[1720670840115,31.34419342,140.87,140.82,11.95]
[1720670840298,11.95,140.87,140.82,11.95]
[1720670840890,0.34,140.86,140.82,11.95]
[1720670842321,12.29,140.86,140.81,11.95]
[1720670842992,0.34,140.86,140.82,11.95]
[1720670843196,0.34,140.86,140.78,15.7985]
[1720670843197,0.34,140.86,140.83,11.95]
[1720670844219,0.17,140.86,140.83,11.95]
[1720670844552,12.29,140.87,140.83,11.95]
[1720670845319,19.39496661,140.86,140.83,11.95]
[1720670845519,19.39496661,140.86,140.82,11.95]
[1720670845919,12.29,140.87,140.82,11.95]